fUSD/lending_fUSD_20240318
["ID","MTS","AMOUNT","RATE_DAILY","PERIOD"]
[319491306,1710800070948,-1118.91,0.00028219,2]
[319491307,1710800070958,-607.04833499,0.00028219,2]
[319491308,1710800070967,-1958.48296949,0.00028219,2]
[319491309,1710800070977,-1580.21051557,0.00028219,2]
[319491310,1710800070987,-605.58365765,0.00028219,2]
[319491311,1710800070998,-942.58428881,0.00028219,2]
[319491312,1710800071008,-1400.4898102,0.00028219,2]
[319491313,1710800071019,-569.27781789,0.00028219,2]
[319491314,1710800071030,-941.26935495,0.00028219,2]
[319491315,1710800071164,-1781.57758374,0.00028219,2]
[319491316,1710800071173,-1913.18060066,0.00028219,2]
[319491317,1710800071183,-713.88265814,0.00028219,2]
[319491318,1710800071192,-1203.75300989,0.00028219,2]
[319491319,1710800071202,-905.83681103,0.00028219,2]
[319491320,1710800071211,-4393.59698484,0.00028219,2]
[319491321,1710800071220,-2303.98647187,0.00028219,2]
[319491322,1710800071230,-1144.3100138,0.00028219,2]
[319491323,1710800071239,-1229.63693113,0.00028219,2]
[319491324,1710800071248,-511.50654935,0.00028219,2]
[319491325,1710800071257,-1401.27357675,0.00028219,2]
[319491326,1710800071266,-1432.35614849,0.00028219,2]
[319491327,1710800071275,-517.02920177,0.00028219,2]
[319491328,1710800071284,-1305.43290485,0.00028219,2]
[319491329,1710800071293,-678.71061797,0.00028219,2]
[319491330,1710800071302,-581.59835017,0.00028219,2]
[319491331,1710800071311,-737.52,0.00028219,2]
[319491332,1710800071321,-1022.25898082,0.00028219,2]
[319491333,1710800071330,-1655.0252899,0.00028219,2]
[319491334,1710800071339,-745.4827969,0.00028219,2]
[319491335,1710800071347,-7203.13154885,0.00028219,2]
[319491336,1710800071357,-20689.70727287,0.00028219,2]
[319491337,1710800071367,-638.24627399,0.00028219,2]
[319491338,1710800071376,-2992.05011014,0.00028219,2]
[319491339,1710800071386,-1088.75035691,0.00028219,2]
[319491340,1710800071397,-1110.46,0.00028219,2]
[319491341,1710800071406,-1157.85058583,0.00028219,2]
[319491342,1710800071416,-1090.46119951,0.00028219,2]
[319491343,1710800071426,-1368.11246934,0.00028219,2]
[319491344,1710800071436,-1716.48611598,0.00028219,2]
[319491345,1710800071445,-605.12887389,0.00028219,2]
[319491346,1710800071455,-623.11999958,0.00028219,2]
[319491347,1710800071464,-8212.49953403,0.00028219,2]
[319491348,1710800071473,-738.60109037,0.00028219,2]
[319491349,1710800071483,-6843.16538778,0.00028219,2]
[319491350,1710800071492,-1815.17499879,0.00028219,2]
[319491351,1710800071501,-1412.2737846,0.00028219,2]
[319491352,1710800071511,-2376.12474049,0.00028219,2]
[319491353,1710800071520,-720.31892131,0.00028219,2]
[319491354,1710800071529,-642.20482717,0.00028219,2]
[319491355,1710800071538,-2621.07392048,0.00028219,2]
[319491356,1710800071548,-7701.24324431,0.00028219,2]
[319491357,1710800071557,-70618.06940386,0.00028219,2]
[319491358,1710800071566,-1283.75405277,0.00028219,2]
[319491359,1710800071575,-933.94949272,0.00028219,2]
[319491360,1710800071585,-651.47635211,0.00028219,2]
[319491361,1710800071594,-1968.44494702,0.00028219,2]
[319491362,1710800071603,-867.66,0.00028219,2]
[319491363,1710800071616,-2930.42534972,0.00028219,2]
[319491364,1710800071628,-1507.46237654,0.00028219,2]
[319491365,1710800071637,-908.23348596,0.00028219,2]
[319491366,1710800071646,-15625.23515822,0.00028219,2]
[319491367,1710800071655,-837.04663523,0.00028219,2]
[319491368,1710800071664,-1649.18927989,0.00028219,2]
[319491369,1710800071674,-386.30198303,0.00028219,2]
[319491370,1710800071684,-1000.72730368,0.00028219,2]
[319491371,1710800071692,-3638.95878214,0.00028219,2]
[319491372,1710800071702,-2240.47581019,0.00028219,2]
[319491373,1710800071712,-1827.97499548,0.00028219,2]
[319491374,1710800071721,-876.79454112,0.00028219,2]
[319491375,1710800071730,-2226.69181158,0.00028219,2]
[319491376,1710800071739,-3729.47661108,0.00028219,2]
[319491377,1710800071748,-3606.61973395,0.00028219,2]
[319491378,1710800071756,-1207.07736698,0.00028219,2]
[319491379,1710800071765,-2980.38954586,0.00028219,2]
[319491380,1710800071774,-28470.89378148,0.00028219,2]
[319491381,1710800071785,-963.50421665,0.00028219,2]
[319491382,1710800071794,-1014.66719936,0.00028219,2]
[319491383,1710800071803,-1007.60840567,0.00028219,2]
[319491384,1710800071813,-12991.3953989,0.00028219,2]
[319491385,1710800071822,-825.74592977,0.00028219,2]
[319491386,1710800071831,-1000.64942461,0.00028219,2]
[319491387,1710800071841,-389.57808274,0.00028219,2]
[319491388,1710800071850,-1967.3700024,0.00028219,2]
[319491389,1710800071859,-989.42,0.00028219,2]
[319491390,1710800071869,-3061.81989498,0.00028219,2]
[319491391,1710800071878,-3350.06227423,0.00028219,2]
[319491392,1710800071887,-1419.02121699,0.00028219,2]
[319491393,1710800071896,-578.95134577,0.00028219,2]
[319491394,1710800071906,-1283.95014692,0.00028219,2]
[319491395,1710800071915,-1017.66363134,0.00028219,2]
[319491396,1710800071924,-793.51843281,0.00028219,2]
[319491397,1710800071933,-1383.68395075,0.00028219,2]
[319491398,1710800071942,-3058.98850173,0.00028219,2]
[319491399,1710800071952,-544.40129236,0.00028219,2]
[319491400,1710800071961,-4863.8659315,0.00028219,2]
[319491401,1710800071970,-3420.891708,0.00028219,2]
[319491402,1710800071979,-1468.14479144,0.00028219,2]
[319491403,1710800071989,-909.78332007,0.00028219,2]
[319491404,1710800071998,-616.17081849,0.00028219,2]
[319491405,1710800072007,-1472.05585895,0.00028219,2]
[319491406,1710800072017,-1391.51752905,0.00028219,2]
[319491407,1710800072027,-501.51023793,0.00028219,2]
[319491408,1710800072038,-1044.44673409,0.00028219,2]
[319491409,1710800072047,-736.73045182,0.00028219,2]
[319491410,1710800072057,-1026.47153994,0.00028219,2]
[319491411,1710800072065,-1726.56190669,0.00028219,2]
[319491412,1710800072075,-2302.74561836,0.00028219,2]
[319491413,1710800072084,-1165.62553254,0.00028219,2]
[319491414,1710800072093,-1375.27042643,0.00028219,2]
[319491415,1710800072102,-12189.87154781,0.00028219,2]
[319491416,1710800072112,-1316.33260677,0.00028219,2]
[319491417,1710800072121,-515.67362086,0.00028219,2]
[319491418,1710800072130,-1294.72473907,0.00028219,2]
[319491419,1710800072139,-1545.51794987,0.00028219,2]
[319491420,1710800072148,-1925.83151779,0.00028219,2]
[319491421,1710800072157,-728.85,0.00028219,2]
[319491422,1710800072166,-1530.55560118,0.00028219,2]
[319491423,1710800072175,-6063.03962065,0.00028219,2]
[319491424,1710800072184,-1677.75936715,0.00028219,2]
[319491425,1710800072193,-630.87659827,0.00028219,2]
[319491426,1710800072202,-697.96417568,0.00028219,2]
[319491427,1710800072212,-1155.02884382,0.00028219,2]
[319491428,1710800072221,-1111.25559415,0.00028219,2]
[319491429,1710800072230,-2083.45947864,0.00028219,2]
[319491430,1710800072239,-874.15594721,0.00028219,2]
[319491431,1710800072248,-1539.88216215,0.00028219,2]
[319491432,1710800072257,-573.02880703,0.00028219,2]
[319491433,1710800072267,-1218.69216073,0.00028219,2]
[319491434,1710800072276,-762.64432507,0.00028219,2]
[319491435,1710800072289,-805.51262221,0.00028219,2]
[319491436,1710800072298,-2278.80844971,0.00028219,2]
[319491437,1710800072307,-2012.06838997,0.00028219,2]
[319491438,1710800072317,-2062.21347971,0.00028219,2]
[319491439,1710800072326,-769.08969455,0.00028219,2]
[319491440,1710800072335,-971.98062051,0.00028219,2]
[319491441,1710800072343,-1606.67776059,0.00028219,2]
[319491442,1710800072353,-1340.34703871,0.00028219,2]
[319491443,1710800072362,-1007.76604932,0.00028219,2]
[319491444,1710800072372,-4163.05616801,0.00028219,2]
[319491445,1710800072381,-1051.18125962,0.00028219,2]
[319491446,1710800072391,-699.48491425,0.00028219,2]
[319491447,1710800072401,-1416.96428254,0.00028219,2]
[319491448,1710800072410,-1475.89950182,0.00028219,2]
[319491449,1710800072420,-518.93531432,0.00028219,2]
[319491450,1710800072430,-1220.59292297,0.00028219,2]
[319491451,1710800072439,-1579.82365725,0.00028219,2]
[319491452,1710800072449,-960.82664088,0.00028219,2]
[319491453,1710800072458,-598.32554811,0.00028219,2]
[319491454,1710800072467,-3689.67776956,0.00028219,2]
[319491455,1710800072476,-685.29903083,0.00028219,2]
[319491456,1710800072486,-1883.18174817,0.00028219,2]
[319491457,1710800072495,-725.9582419,0.00028219,2]
[319491458,1710800072504,-582.87009492,0.00028219,2]
[319491459,1710800072513,-945.31733147,0.00028219,2]
[319491460,1710800072522,-597.81553591,0.00028219,2]
[319491461,1710800072535,-3264.48061211,0.00028219,2]
[319491462,1710800072544,-1114.60354978,0.00028219,2]
[319491463,1710800072553,-1101.21,0.00028219,2]
[319491464,1710800072562,-1090.44956738,0.00028219,2]
[319491465,1710800072572,-3081.49785368,0.00028219,2]
[319491466,1710800072582,-545.27497801,0.00028219,2]
[319491467,1710800072591,-525.48390966,0.00028219,2]
[319491468,1710800072601,-926.22133894,0.00028219,2]
[319491469,1710800072613,-738.67176168,0.00028219,2]
[319491470,1710800072624,-661.54312391,0.00028219,2]
[319491471,1710800072633,-521.16779839,0.00028219,2]
[319491472,1710800072643,-2791.59495925,0.00028219,2]
[319491473,1710800072653,-1479.10569038,0.00028219,2]
[319491474,1710800072662,-15199.38407509,0.00028219,2]
[319491475,1710800072672,-524.55210338,0.00028219,2]
[319491476,1710800072681,-8062.25019285,0.00028219,2]
[319491477,1710800072690,-1469.16967453,0.00028219,2]
[319491478,1710800072699,-1368.58642186,0.00028219,2]
[319491479,1710800072709,-578.89819282,0.00028219,2]
[319491480,1710800072718,-3874.00515672,0.00028219,2]
[319491481,1710800072727,-625.73232942,0.00028219,2]
[319491482,1710800072736,-659.82639281,0.00028219,2]
[319491483,1710800072745,-1165.88,0.00028219,2]
[319491484,1710800072754,-522.35401029,0.00028219,2]
[319491485,1710800072763,-547.46,0.00028219,2]
[319491486,1710800072772,-1852.30140058,0.00028219,2]
[319491487,1710800072781,-1931.58617883,0.00028219,2]
[319491488,1710800072793,-4366.74608671,0.00028219,2]
[319491489,1710800072802,-2627.03441862,0.00028219,2]
[319491490,1710800072811,-4566.98520552,0.00028219,2]
[319491491,1710800072820,-643.53681723,0.00028219,2]
[319491492,1710800072829,-1560.42408446,0.00028219,2]
[319491493,1710800072838,-574.50060857,0.00028219,2]
[319491494,1710800072846,-7356.8037879,0.00028219,2]
[319491495,1710800072855,-5194.48,0.00028219,2]
[319491496,1710800072866,-2335.41069657,0.00028219,2]
[319491497,1710800072875,-1434.11334828,0.00028219,2]
[319491498,1710800072885,-1302.93726936,0.00028219,2]
[319491499,1710800072894,-12149.42599148,0.00028219,2]
[319491500,1710800072903,-976.28394997,0.00028219,2]
[319491501,1710800072912,-596.65285484,0.00028219,2]
[319491502,1710800072921,-773.42757009,0.00028219,2]
[319491503,1710800072935,-12163.59321052,0.00028219,2]
[319491504,1710800072945,-1041.07315959,0.00028219,2]
[319491505,1710800072954,-4014.94460309,0.00028219,2]
[319491506,1710800072963,-1667.01973285,0.00028219,2]
[319491507,1710800072972,-677.02144283,0.00028219,2]
[319491508,1710800072981,-798.56325857,0.00028219,2]
[319491509,1710800072990,-2937.18273919,0.00028219,2]
[319491510,1710800073000,-514.61,0.00028219,2]
[319491511,1710800073009,-630.20140656,0.00028219,2]
[319491512,1710800073018,-4003.18137556,0.00028219,2]
[319491513,1710800073027,-491.87157445,0.00028219,2]
[319491514,1710800073039,-1825.43936412,0.00028219,2]
[319491515,1710800073049,-713.50824835,0.00028219,2]
[319491516,1710800073058,-1704.26718325,0.00028219,2]
[319491517,1710800073067,-2264.68216859,0.00028219,2]
[319491518,1710800073077,-1000.02195208,0.00028219,2]
[319491519,1710800073086,-2538.51399101,0.00028219,2]
[319491520,1710800073095,-3032.50375326,0.00028219,2]
[319491521,1710800073104,-1092.4694032,0.00028219,2]
[319491522,1710800073113,-1456.01037988,0.00028219,2]
[319491523,1710800073123,-1138.75597508,0.00028219,2]
[319491524,1710800073132,-951.88030637,0.00028219,2]
[319491525,1710800073142,-780.79380618,0.00028219,2]
[319491526,1710800073151,-1309.57188422,0.00028219,2]
[319491527,1710800073161,-4539.83724784,0.00028219,2]
[319491528,1710800073170,-4994.80159948,0.00028219,2]
[319491529,1710800073180,-1485.81,0.00028219,2]
[319491530,1710800073189,-849.986148,0.00028219,2]
[319491531,1710800073198,-7035.14561496,0.00028219,2]
[319491532,1710800073207,-425.7941984,0.00028219,2]
[319491533,1710800073217,-1794.73,0.00028219,2]
[319491534,1710800073226,-6038.5246351,0.00028219,2]
[319491535,1710800073235,-1615.90033488,0.00028219,2]
[319491536,1710800073244,-2385.10909872,0.00028219,2]
[319491537,1710800073254,-1135.76866019,0.00028219,2]
[319491538,1710800073263,-979.5044086,0.00028219,2]
[319491539,1710800073272,-6456.72412653,0.00028219,2]
[319491540,1710800073283,-942.31902002,0.00028219,2]
[319491541,1710800073293,-1504.85776203,0.00028219,2]
[319491542,1710800073303,-751.06999879,0.00028219,2]
[319491543,1710800073313,-854.66949094,0.00028219,2]
[319491544,1710800073322,-508.22984978,0.00028219,2]
[319491545,1710800073331,-662.85144904,0.00028219,2]
[319491546,1710800073341,-40338.77111463,0.00028219,2]
[319491547,1710800073351,-2157.87634348,0.00028219,2]
[319491548,1710800073360,-2358.39785955,0.00028219,2]
[319491549,1710800073369,-2520.43531976,0.00028219,2]
[319491550,1710800073378,-1120.76386327,0.00028219,2]
[319491551,1710800073387,-2259.35292937,0.00028219,2]
[319491552,1710800073397,-4121.86827494,0.00028219,2]
[319491553,1710800073406,-6231.46112497,0.00028219,2]
[319491554,1710800073416,-302.44,0.0002822,2]
[319491555,1710800073426,-150.0,0.00028258,7]
[319491556,1710800073436,-152.0,0.00028288,5]
[319491557,1710800073445,-1000.0,0.0002829,2]
[319491558,1710800073455,-20000.0,0.000283,5]
[319491559,1710800073464,-179.320568,0.00028313,2]
[319491560,1710800073474,-504036.17756522,0.00028323,2]
[319491561,1710800073484,-43178.97628795,0.00028323,2]
[319491562,1710800073494,-150.0,0.00028338,7]
[319491563,1710800073503,-177.47,0.0002834,120]
[319491564,1710800073512,-150.0,0.00028382,2]
[319491565,1710800073522,-359.59,0.0002845,2]
[319491566,1710800073532,-150.0,0.00028461,7]
[319491567,1710800073541,-510.0,0.00028493,120]
[319491568,1710800073551,-300.0,0.00028493,5]
[319491569,1710800073560,-500.0,0.00028493,2]
[319491570,1710800073569,-150.0,0.00028493,2]
[319491571,1710800073578,-150.95,0.00028493,2]
[319491572,1710800073588,-6501.23737486,0.000285,120]
[319491573,1710800073598,-1116.0,0.000285,17]
[319491574,1710800073607,-150.0,0.0002854,7]
[319491575,1710800073616,-1210.734409,0.00028545,2]
[319491576,1710800073627,-369.137314,0.00028545,2]
[319491577,1710800073637,-2462.217985,0.00028545,2]
[319491578,1710800073646,-2135.384985,0.00028545,2]
[319491579,1710800073657,-592.329005,0.00028545,2]
[319491580,1710800073666,-4644.078069,0.00028545,2]
[319491581,1710800073676,-1084.896642,0.00028545,2]
[319491582,1710800073685,-296.164502,0.00028545,2]
[319491583,1710800073694,-2322.039035,0.00028545,2]
[319491584,1710800073704,-1084.896641,0.00028545,2]
[319491585,1710800073713,-333.268664,0.00028545,2]
[319491586,1710800073722,-2473.446164,0.00028545,2]
[319491587,1710800073731,-842.87755,0.00028545,2]
[319491588,1710800073740,-564.993585,0.00028545,2]
[319491589,1710800073749,-3662.479414,0.00028545,2]
[319491590,1710800073759,-3371.5102,0.00028545,2]
[319491591,1710800073768,-847.490379,0.00028545,2]
[319491592,1710800073777,-155.961895,0.00028545,2]
[319491593,1710800073787,-250.869854,0.00028545,2]
[319491594,1710800073797,-150.0,0.00028547,2]
[319491595,1710800073806,-150.0,0.00028565,7]
[319491596,1710800073816,-167.652356,0.00028567,2]
[319491597,1710800073825,-195.991928,0.00028567,2]
[319491598,1710800073835,-560.878746,0.00028567,2]
[319491599,1710800073845,-167.501668,0.00028567,2]
[319491600,1710800073854,-362.765595,0.00028567,2]
[319491601,1710800073864,-162.923786,0.00028567,2]
[319491602,1710800073873,-1873.106505,0.00028567,2]
[319491603,1710800073882,-177.060357,0.00028567,2]
[319491604,1710800073891,-164.928906,0.00028567,2]
[319491605,1710800073901,-175.415338,0.00028567,2]
[319491606,1710800073910,-170.223599,0.00028567,2]
[319491607,1710800073920,-174.309978,0.00028567,2]
[319491608,1710800073929,-162.091559,0.00028567,2]
[319491609,1710800073939,-586.99684,0.00028567,2]
[319491610,1710800073948,-283.928068,0.00028567,2]
[319491611,1710800073958,-150.0,0.00028584,7]
[319491612,1710800073967,-1010.44,0.0002866,2]
[319491613,1710800073977,-150.0,0.00028667,7]
[319491614,1710800073987,-150.0,0.00028667,7]
[319491615,1710800073996,-150.0,0.00028708,7]
[319491616,1710800074006,-150.0,0.00028711,2]
[319491617,1710800074015,-432.0,0.00028756,2]
[319491618,1710800074025,-510.0,0.00028767,120]
[319491619,1710800074035,-500.0,0.00028767,2]
[319491620,1710800074045,-155.0,0.00028768,2]
[319491621,1710800074054,-162.6041618,0.00028772,2]
[319491622,1710800074064,-179.320568,0.00028777,2]
[319491623,1710800074073,-500.0,0.000288,120]
[319491624,1710800074083,-7234.71,0.000288,2]
[319491625,1710800074092,-7234.71,0.000288,2]
[319491626,1710800074101,-7234.71,0.000288,2]
[319491627,1710800074111,-151.07221851,0.00028824,2]
[319491628,1710800074120,-150.0,0.00028831,7]
[319491629,1710800074129,-150.0,0.00028871,7]
[319491630,1710800074138,-150.0,0.00028876,2]
[319491631,1710800074147,-102256.88774112,0.00028879,2]
[319491632,1710800074156,-166095.78331332,0.0002888,2]
[319491633,1710800074165,-1200.97223445,0.0002889,2]
[319491634,1710800074175,-1210.734409,0.00028893,2]
[319491635,1710800074183,-369.137314,0.00028893,2]
[319491636,1710800074192,-2462.217985,0.00028893,2]
[319491637,1710800074201,-2135.384985,0.00028893,2]
[319491638,1710800074210,-592.329005,0.00028893,2]
[319491639,1710800074219,-4644.078069,0.00028893,2]
[319491640,1710800074228,-1084.896642,0.00028893,2]
[319491641,1710800074238,-296.164502,0.00028893,2]
[319491642,1710800074247,-2322.039035,0.00028893,2]
[319491643,1710800074256,-1084.896641,0.00028893,2]
[319491644,1710800074266,-333.268664,0.00028893,2]
[319491645,1710800074275,-2473.446164,0.00028893,2]
[319491646,1710800074284,-842.87755,0.00028893,2]
[319491647,1710800074293,-564.993585,0.00028893,2]
[319491648,1710800074302,-3662.479414,0.00028893,2]
[319491649,1710800074312,-3371.5102,0.00028893,2]
[319491650,1710800074321,-847.490379,0.00028893,2]
[319491651,1710800074331,-155.961895,0.00028893,2]
[319491652,1710800074340,-250.869854,0.00028893,2]
[319491653,1710800074349,-500.0,0.000289,2]
[319491654,1710800074358,-150.0,0.0002892,7]
[319491655,1710800074367,-560.878746,0.00028924,2]
[319491656,1710800074376,-362.765595,0.00028924,2]
[319491657,1710800074385,-1873.106505,0.00028924,2]
[319491658,1710800074394,-586.99684,0.00028924,2]
[319491659,1710800074403,-283.928068,0.00028924,2]
[319491660,1710800074412,-150.0,0.00028955,7]
[319491661,1710800074422,-432.0,0.00028997,2]
[319491662,1710800074431,-200000.0,0.00029,9]
[319491663,1710800074441,-350.0,0.00029,29]
[319491664,1710800074450,-1288.55816243,0.00029,30]
[319491665,1710800074460,-600.0,0.00029,30]
[319491666,1710800074469,-12024.78757837,0.00029,2]
[319491667,1710800074478,-271052.75725851,0.00029,4]
[319491668,1710800074488,-1025.94290944,0.00029,2]
[319491669,1710800074497,-50000.0,0.00029,30]
[319491670,1710800074507,-7315.72570843,0.00029,120]
[319491671,1710800074516,-1116.0,0.00029,17]
[319491672,1710800074525,-151.07221851,0.00029013,2]
[319491673,1710800074535,-573.406772,0.00029025,2]
[319491674,1710800074544,-150.0,0.0002904,2]
[319491675,1710800074554,-510.0,0.00029041,120]
[319491676,1710800074563,-300.0,0.00029041,5]
[319491677,1710800074573,-150.0,0.00029041,2]
[319491678,1710800074583,-170.223599,0.00029043,2]
[319491679,1710800074592,-150.0,0.00029078,7]
[319491680,1710800074602,-153.05383812,0.00029089,2]
[319491681,1710800074612,-150.0,0.00029177,7]
[319491682,1710800074622,-385.0,0.00029178,2]
[319491683,1710800074632,-1823.38573137,0.000292,2]
[319491684,1710800074641,-150.0,0.00029201,7]
[319491685,1710800074651,-150.0,0.00029204,2]
[319491686,1710800074660,-150.95,0.00029224,2]
[319491687,1710800074670,-202.109937,0.00029241,2]
[319491688,1710800074679,-151.31149,0.00029241,2]
[319491689,1710800074688,-179.320568,0.00029241,2]
[319491690,1710800074698,-1210.734409,0.00029241,2]
[319491691,1710800074707,-369.137314,0.00029241,2]
[319491692,1710800074717,-2462.217985,0.00029241,2]
[319491693,1710800074726,-2135.384985,0.00029241,2]
[319491694,1710800074735,-592.329005,0.00029241,2]
[319491695,1710800074744,-4644.078069,0.00029241,2]
[319491696,1710800074754,-1084.896642,0.00029241,2]
[319491697,1710800074763,-296.164502,0.00029241,2]
[319491698,1710800074772,-2322.039035,0.00029241,2]
[319491699,1710800074781,-1084.896641,0.00029241,2]
[319491700,1710800074792,-333.268664,0.00029241,2]
[319491701,1710800074801,-2473.446164,0.00029241,2]
[319491702,1710800074810,-842.87755,0.00029241,2]
[319491703,1710800074820,-564.993585,0.00029241,2]
[319491704,1710800074829,-3662.479414,0.00029241,2]
[319491705,1710800074838,-3371.5102,0.00029241,2]
[319491706,1710800074847,-847.490379,0.00029241,2]
[319491707,1710800074857,-155.961895,0.00029241,2]
[319491708,1710800074866,-250.869854,0.00029241,2]
[319491709,1710800074876,-560.878746,0.00029281,2]
[319491710,1710800074885,-362.765595,0.00029281,2]
[319491711,1710800074894,-1873.106505,0.00029281,2]
[319491712,1710800074904,-586.99684,0.00029281,2]
[319491713,1710800074914,-283.928068,0.00029281,2]
[319491714,1710800074923,-177.060357,0.00029281,2]
[319491715,1710800074932,-2518.0,0.000293,2]
[319491716,1710800074941,-150.0,0.000293,7]
[319491717,1710800074951,-510.0,0.00029315,120]
[319491718,1710800074960,-844.0,0.00029316,2]
[319491719,1710800074970,-150.0,0.00029325,7]
[319491720,1710800074980,-152.0,0.0002933,6]
[319491721,1710800074990,-150.0,0.00029369,2]
[319491722,1710800074999,-1000.0,0.00029386,2]
[319491723,1710800075008,-153.80188618,0.00029388,2]
[319491724,1710800075018,-20000.0,0.000294,5]
[319491725,1710800075027,-9007.37447924,0.0002942,15]
[319491726,1710800075038,-150.0,0.00029448,7]
[319491727,1710800075047,-500.0,0.00029452,7]
[319491728,1710800075057,-11000.0,0.00029463,7]
[319491729,1710800075067,-150.0,0.00029484,7]
[319491730,1710800075076,-843.48422727,0.000295,3]
[319491731,1710800075087,-100000.0,0.000295,60]
[319491732,1710800075096,-1116.0,0.000295,18]
[319491733,1710800075105,-170.223599,0.00029519,2]
[319491734,1710800075115,-1026.0,0.00029519,5]
[319491735,1710800075125,-150.0,0.00029533,2]
[319491736,1710800075134,-150.0,0.00029571,7]
[319491737,1710800075341,-150.0,0.00029571,7]
[319491738,1710800075357,-510.0,0.00029589,120]
[319491739,1710800075367,-300.0,0.00029589,5]
[319491740,1710800075377,-150.0,0.00029589,2]
[319491741,1710800075386,-560.878746,0.00029638,2]
[319491742,1710800075396,-362.765595,0.00029638,2]
[319491743,1710800075405,-1873.106505,0.00029638,2]
[319491744,1710800075415,-586.99684,0.00029638,2]
[319491745,1710800075425,-283.928068,0.00029638,2]
[319491746,1710800075434,-150.0,0.0002968,7]
[319491747,1710800075444,-150.0,0.00029695,7]
[319491748,1710800075454,-150.0,0.00029698,2]
[319491749,1710800075463,-156510.24669213,0.000297,4]
[319491750,1710800075473,-150.0,0.00029722,7]
[319491751,1710800075483,-701.93,0.00029733,2]
[319491752,1710800075492,-78400.22573424,0.0002975,2]
[319491753,1710800075502,-1584.68699205,0.00029784,30]
[319491754,1710800075511,-150.0,0.0002979,7]
[319491755,1710800075521,-6000.0,0.000298,2]
[319491756,1710800075531,-150.0,0.00029818,7]
[319491757,1710800075541,-1010.44,0.0002984,2]
[319491758,1710800075551,-150.0,0.00029862,2]
[319491759,1710800075561,-510.0,0.00029863,120]
[319491760,1710800075570,-5609.25,0.00029899,2]
[319491761,1710800075580,-6855.75,0.00029899,2]
[319491762,1710800075589,-5300.0,0.000299,24]
[319491763,1710800075599,-1000.0,0.000299,10]
[319491764,1710800075609,-5300.0,0.000299,25]
[319491765,1710800075619,-20476.98110205,0.000299,2]
[319491766,1710800075631,-12677.19119769,0.000299,6]
[319491767,1710800075641,-12677.19119769,0.000299,6]
[319491768,1710800075651,-12677.19119769,0.000299,6]
[319491769,1710800075662,-12677.19119769,0.000299,6]
[319491770,1710800075672,-12677.19119769,0.000299,6]
[319491771,1710800075682,-12677.19119769,0.000299,6]
[319491772,1710800075691,-12677.19119769,0.000299,6]
[319491773,1710800075702,-12677.19119769,0.000299,6]
[319491774,1710800075712,-12677.19119769,0.000299,6]
[319491775,1710800075721,-12677.19019769,0.000299,6]
[319491776,1710800075731,-153.05383812,0.00029931,2]
[319491777,1710800075740,-1459.215083,0.0002994,10]
[319491778,1710800075750,-150.0,0.00029942,7]
[319491779,1710800075760,-150.95,0.00029954,2]
[319491780,1710800075770,-1000.0,0.0002996,10]
[319491781,1710800075779,-1000.0,0.0002998,10]
[319491782,1710800075790,-5048.11778627,0.0002999,2]
[319491783,1710800075801,-58236.9681081,0.0002999,2]
[319491784,1710800075810,-560.878746,0.00029995,2]
[319491785,1710800075819,-362.765595,0.00029995,2]
[319491786,1710800075828,-1873.106505,0.00029995,2]
[319491787,1710800075838,-586.99684,0.00029995,2]
[319491788,1710800075847,-283.928068,0.00029995,2]
[319491789,1710800075856,-195.991928,0.00029995,2]
[319491790,1710800075866,-175.415338,0.00029995,2]
[319491791,1710800075875,-170.223599,0.00029995,2]
[319491792,1710800075885,-177.060357,0.00029995,2]
[319491793,1710800075894,-232.24488016,0.00029996,2]
[319491794,1710800075904,-231.22785687,0.00029999,2]
[319491795,1710800075913,-15135.84649447,0.00029999,5]
[319491796,1710800075922,-200000.0,0.0003,20]
[319491797,1710800075931,-200000.0,0.0003,30]
[319491798,1710800075941,-155.0,0.0003,5]
[319491799,1710800075950,-27458.97278721,0.0003,4]
[319491800,1710800075959,-155.0,0.0003,4]
[319491801,1710800075969,-2749.97254578,0.0003,2]
[319491802,1710800075978,-1569.43193933,0.0003,4]
[319491803,1710800075987,-3200.0,0.0003,2]
[319491804,1710800075997,-713.64088082,0.0003,30]
[319491805,1710800076006,-248.35568911,0.0003,4]